Cogmind - Beta 16 @@@ ROGUE MODE // 2025.11.02 @ 13:02:13 Player: Not_Jesus8 Result: Self-destructed Performance ------------- Evolutions (1) 500 Regions Visited (2) 400 Robots Destroyed (17) 85 Value Destroyed (306) 306 Prototype IDs (0) 0 Alien Tech Used (0) 0 Bonus (0) 0 TOTAL SCORE: 1291 Bonus ------- None Cogmind --------- Core Integrity 369/400 Matter 192/300 Energy 100/100 System Corruption 0% Temperature Cool (9) Movement Flying (115) Ox1 Location -9/Materials Parts ------- > --- POWER (1) -------- (None) > --- PROPULSION (2) --- VTOL Module > --- UTILITY (4) ------ Improved Targeting Computer Improved Targeting Computer > --- WEAPON (2) ------- Shotgun Shotgun > --- INVENTORY (5) ---- VTOL Module Improved Terrain Scanner Transport Network Coupler Shotgun Mini Grenade Launcher Peak State ------------ > --- POWER ------------ (None) > --- PROPULSION ------- VTOL Module VTOL Module > --- UTILITY ---------- Improved Targeting Computer Improved Targeting Computer > --- WEAPON ----------- Shotgun Shotgun > --- INVENTORY -------- VTOL Module Improved Terrain Scanner Shotgun Shotgun Mini Grenade Launcher [Rating: 13] Favorites ----------- Power None Propulsion VTOL Module Flight Unit VTOL Module Utility Improved Targeting Computer Device Seismic Detector Storage Small Storage Unit Processor Improved Targeting Computer Weapon Shotgun Ballistic Gun Shotgun Build | -11 -10 -9 ------- Run | Yrd Mat Mat Slots Evolved 2 | . . 2 Power . | . . . Propulsion . | . . . Utility 2 | . . 2 Weapon . | . . . Parts Attached 12 | 4 8 . Power . | . . . Engine . | . . . Core . | . . . Reactor . | . . . Propulsion 3 | . 3 . Treads . | . . . Leg . | . . . Wheel . | . . . Hover . | . . . Flight 3 | . 3 . Utility 4 | 2 2 . Device 1 | 1 . . Storage 1 | 1 . . Processor 2 | . 2 . Hackware . | . . . Protection . | . . . Artifact . | . . . Weapon 5 | 2 3 . Energy Gun . | . . . Energy Cannon . | . . . Ballistic Gun 5 | 2 3 . Ballistic Cannon . | . . . Launcher . | . . . Special Weapon . | . . . Impact Weapon . | . . . Slashing Weapon . | . . . Piercing Weapon . | . . . Special Melee Weapon . | . . . Unidentified Prototypes . | . . . Parts Lost 1 | . . 1 Power . | . . . Propulsion 1 | . . 1 Utility . | . . . Weapon . | . . . Highest Loss Streak 1 | . . 1 To Critical Strikes . | . . . Average Backups 3 | . 3 5 Power . | . . . Propulsion . | . . 1 Utility 1 | . 1 2 Weapon 1 | . 1 2 Tool/Special . | . . . Unused Backups 5 | . . 5 Power . | . . . Propulsion 1 | . . 1 Utility 2 | . . 2 Weapon 2 | . . 2 Tool/Special . | . . . Average Slot Usage (%) 70 | . 71 62 Flight 19 | . 19 18 Device 5 | . 5 . Processor 17 | . 17 22 Ballistic Gun 27 | . 28 22 Peak Build Rating 13 | 3 13 13 Average Rating 8 | 2 9 12 On Entrance 5 | . 3 13 Avg Prop Armor Cover (%) . | . . . Naked Turns . | . . . Heaviest Build 7 | 7 7 6 Greatest Support 8 | 3 8 8 Greatest Overweight (x) 2 | 2 . 1 Average Overweight (x) . | . . . Largest Inventory Capacity 8 | 8 5 5 Average Capacity 5 | 5 5 5 Most Carried 5 | 1 5 5 Average Carried 3 | . 3 5 Final Capacity 5 | 5 5 5 Final Carried 5 | 1 5 5 Class Distribution -------------------- 61% | Sprinter 38% | Mutant Dominant Class ---------------- Sprinter | -10/Materials Sprinter | -9/Materials Resources | -11 -10 -9 ----------- Run | Yrd Mat Mat Matter Collected 433 | 146 287 . Remotely . | . . . Salvage Created 437 | 46 391 . Parts 34 | 6 28 . Haulers Intercepted 2 | . 2 . Recyclers Shooed 1 | . 1 . Parts Field Recycled . | . . . Retrieved Matter . | . . . Parts Self-Destructed . | . . . Prevented . | . . . Parts Restored . | . . . Kills | -11 -10 -9 ------- Run | Yrd Mat Mat Combat Hostiles Destroyed 11 | . 11 . Guns 11 | . 11 . Classes Destroyed 6 | 1 5 . Builder 1 | . 1 . Tunneler 2 | 2 . . Hauler 2 | . 2 . Watcher 1 | . 1 . Swarmer 5 | . 5 . Grunt 6 | . 6 . Best Kill Streak 9 | 1 9 . Combat Bots Only 5 | . 5 . Max Kills in Single Turn 2 | 1 2 . Gunslinging 1 | . 1 . Exploded . | . . . Melee . | . . . Uniques/NPCs Destroyed . | . . . Combat | -11 -10 -9 -------- Run | Yrd Mat Mat Hostile Shots Fired 50 | . 44 6 Missed 20 | . 18 2 Hits 30 | . 26 4 Projectile 30 | . 26 4 Critical Strikes 2 | . 2 . Damage Taken 329 | . 267 62 Core 101 | . 70 31 Absorbed by Shields . | . . . Core Remaining (%) 86 | 100 72 . Volleys Fired 44 | 9 35 . Largest 2 | 2 2 . Hottest 46 | 40 46 . Shots Fired 88 | 18 70 . Gun 88 | 18 70 . Cannon . | . . . Launcher . | . . . Special . | . . . Kinetic 88 | 18 70 . Thermal . | . . . Explosive . | . . . Electromagnetic . | . . . Robot Hit Streak 9 | 6 9 . Robot Miss Streak 7 | 1 7 . Penetration Max . | . . . Secondary Targets 4 | . 4 . Max Gunslinging Chain 1 | . 1 . Shots Hit Robots 57 | 9 48 . Core Hits 32 | 5 27 . Critical Kills 1 | . 1 . Critical Parts Destroyed . | . . . Critical Strikes 1 | . 1 . Destroy 1 | . 1 . Melee Attacks . | . . . Impact . | . . . Slashing . | . . . Piercing . | . . . Sneak Attacks . | . . . Combat Hostiles . | . . . Follow-up Attacks . | . . . Damage Inflicted 717 | 86 631 . Guns 717 | 86 631 . Cannons . | . . . Explosions . | . . . Melee . | . . . Ramming . | . . . Kinetic 717 | 86 631 . Thermal . | . . . Explosive . | . . . Electromagnetic . | . . . Impact . | . . . Slashing . | . . . Piercing . | . . . Highest Corruption . | . . . Average Corruption . | . . . Corruption Purged . | . . . Corruption Blocked . | . . . Overload Shots . | . . . Overflow Damage . | . . . Projectiles . | . . . Explosions . | . . . Melee . | . . . Knockbacks . | . . . Impact . | . . . Kinetic . | . . . Secondary . | . . . Self-Inflicted Damage . | . . . Shots . | . . . Rammed . | . . . Targets Rammed . | . . . Kicked . | . . . Crushed . | . . . Highest Temperature 10 | . 10 . Average Temperature 3 | . 3 . Received Heat Transfer 123 | . 114 9 Siege Activations . | . . . Martial Activations . | . . . Shielding Activations . | . . . Robots Disrupted . | . . . Combat Hostiles . | . . . Robots Corrupted . | . . . Combat Hostiles . | . . . Parts Fried . | . . . Impact Corruptions . | . . . Robots Melted . | . . . Combat Hostiles . | . . . Parts Melted . | . . . Heat Transferred . | . . . Parts Sabotaged . | . . . Parts Stolen . | . . . Parts Stripped . | . . . Power Chain Reactions . | . . . Alert | -11 -10 -9 ------- Run | Yrd Mat Mat Maximum Alert Level 1 | . 1 . Low Security (%) 78 | 100 73 100 Level 1 21 | . 26 . Level 2 . | . . . Level 3 . | . . . Level 4 . | . . . Level 5 . | . . . High Security . | . . . Max Security . | . . . Peak Influence 245 | 5 245 78 Initial 63 | . . 63 Average 117 | 1 141 69 Influence Increases 430 | 10 405 15 Destroy 0b10 Robot/C 220 | . 220 . Destroy 0b10 Robot/NC 30 | 10 20 . Destroy Leader 56 | . 56 . Successful Hack 49 | . 49 . Partial Spotted 15 | . . 15 Lose Combat Pursuer 60 | . 60 . Influence Decreases 362 | 10 254 98 Entered New Map 88 | . . 88 Time Decay 264 | 10 254 . Lost Part 10 | . . 10 Squads Dispatched 2 | . 2 . Investigation 1 | . 1 . Extermination . | . . . Reinforcement 1 | . 1 . Assault . | . . . Garrison . | . . . Intercept . | . . . Searches Triggered . | . . . Construction Impeded . | . . . Haulers Reinforced . | . . . Active Scanning Responses . | . . . Cargo Convoy Interrupts . | . . . Stealth | -11 -10 -9 --------- Run | Yrd Mat Mat Distress Signals 3 | . 3 . Communications Jammed . | . . . Distress Signals . | . . . Times Spotted 18 | . 15 3 Peak Tracking Total 7 | . 7 5 Tactical Retreats 1 | . 1 . Traps | -11 -10 -9 ------- Run | Yrd Mat Mat Traps Triggered . | . . . Indirectly . | . . . Trap Hack Attempts . | . . . Triggered . | . . . Disarmed . | . . . Reprogrammed . | . . . Reused . | . . . Traps Extracted . | . . . Installed . | . . . Triggered . | . . . Machines | -11 -10 -9 ---------- Run | Yrd Mat Mat Machines Disabled . | . . . Max in Single Turn . | . . . Machines Repaired . | . . . Machines Dismantled . | . . . Machines Sabotaged . | . . . Overloaded Fab Kills . | . . . Hacking | -11 -10 -9 --------- Run | Yrd Mat Mat Machines Accessed 6 | . 6 . Terminals 6 | . 6 . Fabricators . | . . . Repair Stations . | . . . Recycling Units . | . . . Scanalyzers . | . . . Garrison Access . | . . . Total Hacks 19 | . 19 . Successful 10 | . 10 . Failed 9 | . 9 . Catastrophic 1 | . 1 . Database Lockouts . | . . . Manual 19 | . 19 . Terminals 19 | . 19 . Fabricators . | . . . Repair Stations . | . . . Recycling Units . | . . . Scanalyzers . | . . . Garrison Access . | . . . Terminal Hacks 1 | . 1 . Terminal Index 1 | . 1 . Fabricator Hacks . | . . . Repair Station Hacks . | . . . Recycling Unit Hacks . | . . . Scanalyzer . | . . . Garrison Access Hacks . | . . . Unauthorized Hacks 9 | . 9 . Terminals 9 | . 9 . Botnet 4 | . 4 . Skim 5 | . 5 . Fabricators . | . . . Repair Stations . | . . . Recycling Units . | . . . Scanalyzers . | . . . Garrison Access . | . . . Data Cores Recovered . | . . . Used . | . . . Hacking Detections 5 | . 5 . Full Trace Events 1 | . 1 . Feedback Events . | . . . Feedback Blocked . | . . . Robot Schematics Acquired . | . . . Robots Built . | . . . Authchips . | . . . Time . | . . . Total Robot Build Rating . | . . . Part Schematics Acquired . | . . . Parts Built . | . . . Authchips . | . . . Time . | . . . Total Part Build Rating . | . . . Part Studies Acquired . | . . . Parts Repaired . | . . . Time . | . . . Parts Recycled . | . . . Recycled Matter . | . . . Retrieved Matter . | . . . Retrieved Components . | . . . Parts Scanalyzed . | . . . Part Schematics Acquired . | . . . Parts Damaged . | . . . Bothacking | -11 -10 -9 ------------ Run | Yrd Mat Mat Used RIF Installer . | . . . Robots Hacked . | . . . Non-combat . | . . . Combat . | . . . Robot Hacks Applied . | . . . Relay Couplers Released . | . . . Fabnet Peak Effective % . | . . . Robots Rewired . | . . . Allies Hacked . | . . . Hacks Repelled . | . . . Allies | -11 -10 -9 -------- Run | Yrd Mat Mat Total Allies . | . . . Largest Group . | . . . Highest-Rated Group . | . . . Highest-Rated Ally . | . . . Total Orders . | . . . Ally Attacks . | . . . Total Damage . | . . . Kills . | . . . Allies Corrupted . | . . . Allies Melted . | . . . Intel | -11 -10 -9 ------- Run | Yrd Mat Mat Active Infowar (turns) 250 | 29 221 . Seismic 250 | 29 221 . Robot Analysis Total . | . . . Derelict Logs Recovered . | . . . Drone Launches . | . . . Drone Recoveries . | . . . Exploration | -11 -10 -9 ------------- Run | Yrd Mat Mat Turns Passed 719 | 118 589 12 Spaces Moved 852 | 159 664 29 Core 335 | 159 176 . Treads . | . . . Legs . | . . . Wheels . | . . . Hover . | . . . Flight 517 | . 488 29 Fastest Speed 32 | 50 32 32 Average Speed 40 | 55 36 40 Slowest Speed 150 | 150 50 115 Overloaded Moves . | . . . Propulsion Burnouts . | . . . Robots Hopped 3 | . 3 . Potential Cave-ins . | . . . Cave-ins Triggered . | . . . Exploration Rate (%) 34 | 4 94 4 Regions Visited 2 Branch Regions . Pre-discovered Areas 1 | . 1 . Known Exits Taken . | . . . Unknown Exits Taken 2 | 1 1 . Scrap Searched . | . . . Spaces Dug . | . . . Terrain Destroyed . | . . . Melee . | . . . Projectile . | . . . AOE . | . . . Terrain Rammed . | . . . Walls Destroyed . | . . . Machines Disabled . | . . . Actions | -11 -10 -9 --------- Run | Yrd Mat Mat Total 1141 | 173 939 29 Wait 225 | . 225 . Move 844 | 158 657 29 Hop 3 | . 3 . Pick Up 7 | 1 6 . Fast Attach 10 | 4 6 . Attach 2 | . 2 . Detach . | . . . Swap . | . . . Drop 6 | 1 5 . Fire 44 | 9 35 . Melee . | . . . Ram . | . . . Kick . | . . . Crush . | . . . Escape Stasis . | . . . Rewire . | . . . Trap . | . . . Miscellaneous . | . . . Route ------- -11/Scrapyard -10/Materials (discovered 5 exits: [*Mat x3] / [*Min x2]) -9/Materials History --------- Turn | Location | Event 7 | -11/Scrapyard | Discovered new exit (range 16) 119 | -11/Scrapyard | Entered Materials 256 | -10/Materials | Discovered new exit (range 15) 365 | -10/Materials | Discovered new exit (range 12) 398 | -10/Materials | Discovered new exit (range 15) 440 | -10/Materials | Discovered new exit (range 15) 487 | -10/Materials | Discovered new exit (range 9) 547 | -10/Materials | Learned 4 Recycling zone layouts 579 | -10/Materials | Build established: Sprinter 580 | -10/Materials | Learned Storage garrison access intel 616 | -10/Materials | Loaded intel: 19 trap records 620 | -10/Materials | Learned Storage emergency access door positions 633 | -10/Materials | Learned location of Mines (-9) 657 | -10/Materials | Learned 4 Subcaves zone layouts 708 | -10/Materials | Entered another Materials area 708 | -9/Materials | Evolved 2 slots: Utility x2 720 | -9/Materials | Self-destructed Last Messages --------------- Skimming routine engaged. Thanks from A0-MCA. 00547_ >> SKIM: Stored Recycling zone layouts (x4). 00580_ >> SKIM: Stored Storage garrison access intel. 00616_ >> SKIM: Loading Materials trap records (x19)... 00620_ >> SKIM: Stored Storage emergency access points. 00633_ >> SKIM: World map updated: -9/Mines. 00657_ >> SKIM: Stored Subcaves zone layouts (x4). 00657_ >> SKIM: Data seek routine purged. 00706_ Terminal unresponsive. PARAMETERS=UTILITY+2 LOCATION=UNKNOWN GOAL=ESCAPE 00709_ O-16 Technician: "IFF HANDSHAKE FAILED. SECURING TERMINAL." 00717_ VTOL Module destroyed. Map ----- +----------------------------------------------------+ | ?????????????????????????????????????????????????? | | ?????????????????????????????????????????????????? | | ?????????????????????????????????????????????????? | | ?????????????????????????????????????????????????? | | ?????????????????????????????????????????????????? | | ?????????????????????????????????????????????????? | | ?????????????????????????????????????????????????? | | ?????????????????????????????????????????????????? | | ?????????????????????????????????????????????????? | | ?????????????????????????????????????????????????? | | ?????????????????????????????????????????????????? | | ?????????????????????????????????????????????????? | | ?????????????????????????????????????????????????? | | ?????????????????????????????????????????????????? | | ?????????????????????????????????????????????????? | | ?????????????????????????????????????????????????? | | ?????????????????????????????????????????????????? | | ?????????????????????????????????????????????????? | | ?????????????????????????????????????????????????? | | ?????????????????????????????????????????????????? | | ?????????????????????????????????????????????????? | | ?????????????????????????????????????????????????? | | ?????????????????????????????????????????????????? | | ?????????????????????????????#######+######+### ? | | ????????????????###+########## | | ??????????# @ | | ??????????# Y | | ??????????# ############### ###+######??????? | | ???????????????????########### #???????????????? | | ???????????????????# # #???????????????? | | ????????????????????? # #???????????????? | | ????????????????????? """ # #???????????????? | | ?????????????????????? """"" + #???????????????? | | ?????????????????????? """"" # #???????????????? | | ???????????????????????""""" # #???????????????? | | ??????????????????????? """ # #???????????????? | | ??????????????????????? # #???????????????? | | ???????????????????????####### #???????????????? | | ?????????????????????????????#####???????????????? | | ?????????????????????????????????????????????????? | | ?????????????????????????????????????????????????? | | ?????????????????????????????????????????????????? | | ?????????????????????????????????????????????????? | | ?????????????????????????????????????????????????? | | ?????????????????????????????????????????????????? | | ?????????????????????????????????????????????????? | | | | | | | | | +----------------------------------------------------+ Best States ------------- Heat Dissipation 28 Energy Generation 5 Energy Capacity 100 Matter Stores 258 Matter Capacity 300 Sight Range 16 Terrain Scan Density 10 Evasion (%) 63 Targeting Accuracy 12 Item Schematics ----------------- None Robot Schematics ------------------ None Fabricated ------------ Nothing Repaired ---------- Nothing Studied --------- None Alien Tech Used ----------------- None Achievements -------------- None Challenges ------------ None Game ------ Seed FieldthrustSapperBooster Manual? 0 Play Time 00:07:15 Cumulative 26.2 hours Start 2025.11.02 @ 12:54:11 End 2025.11.02 @ 13:02:13 Sessions 1 Manual Loads 0 Difficulty Rogue Special Mode None Game No. 48 Rogue 48 Adventurer 0 Explorer 0 Win Type - Total 2 Types 2/0/0/0/0/0/0/0/0/0 Lore% 37 Gallery% 29 Achievement% 28 Wizard Run 0 Options --------- Layout 1 ASCII 0 Keyboard 1 Movement Arrows Keybinds 0 Fullscreen 1 Font 16/SmallcapsGlow Map View 50x54 Zoom Use 11% Tactical HUD 1 Map Filters NONE Filters NONE Steam 1 RUN: a75ceff8-3030-4008-aa36-966a8954d6a1